[Event "*** Titled Tuesday Blitz"]
[Site "Chess.com"]
[Date "2019.05.07"]
[Round "1"]
[White "TastyFrenchFries"]
[Black "SantoBlue"]
[Result "0-1"]
[WhiteElo "2429"]
[BlackElo "2789"]
[TimeControl "180+2"]
[EndTime "13:02:27 PDT"]
[Termination "SantoBlue won by resignation"]

1. e4 {[%clk 0:02:57.7]} 1... e5 {[%clk 0:02:56]} 2. Nf3 {[%clk 0:02:55.6]} 2...
Nc6 {[%clk 0:02:57.2]} 3. Bb5 {[%clk 0:02:55.7]} 3... a6 {[%clk 0:02:56.1]} 4.
Ba4 {[%clk 0:02:56.9]} 4... Nf6 {[%clk 0:02:57]} 5. d3 {[%clk 0:02:56.5]} 5...
d6 {[%clk 0:02:57.2]} 6. h3 {[%clk 0:02:56]} 6... g6 {[%clk 0:02:57.4]} 7. c3
{[%clk 0:02:57.1]} 7... Bg7 {[%clk 0:02:53.5]} 8. Bc2 {[%clk 0:02:58.4]} 8...
O-O {[%clk 0:02:54.1]} 9. Bg5 {[%clk 0:02:59.1]} 9... h6 {[%clk 0:02:52.8]} 10.
Bh4 {[%clk 0:02:59.5]} 10... g5 {[%clk 0:02:51.9]} 11. Bg3 {[%clk 0:03:00.6]}
11... Nh5 {[%clk 0:02:52.6]} 12. Nbd2 {[%clk 0:02:56.1]} 12... f5 {[%clk
0:02:42.4]} 13. exf5 {[%clk 0:02:54.1]} 13... Bxf5 {[%clk 0:02:42.8]} 14. Qe2
{[%clk 0:02:55.5]} 14... Nf4 {[%clk 0:02:40.4]} 15. Bxf4 {[%clk 0:02:53.9]}
15... exf4 {[%clk 0:02:42.3]} 16. O-O-O {[%clk 0:02:52]} 16... Re8 {[%clk
0:02:38.7]} 17. Qf1 {[%clk 0:02:50.9]} 17... a5 {[%clk 0:02:34.7]} 18. d4 {[%clk
0:02:46.4]} 18... Qd7 {[%clk 0:02:31.8]} 19. Qb5 {[%clk 0:02:35.8]} 19... Bxc2
{[%clk 0:02:32.6]} 20. Kxc2 {[%clk 0:02:36.9]} 20... Nb4+ {[%clk 0:02:33]} 0-1

[Event "*** Titled Tuesday Blitz"]
[Site "Chess.com"]
[Date "2019.05.07"]
[Round "1"]
[White "Joseph_Truelson"]
[Black "Sashadav97"]
[Result "0-1"]
[WhiteElo "2225"]
[BlackElo "2559"]
[TimeControl "180+2"]
[EndTime "13:03:38 PDT"]
[Termination "Sashadav97 won by resignation"]

1. d4 {[%clk 0:03:00.9]} 1... Nf6 {[%clk 0:03:01]} 2. Nc3 {[%clk 0:03:01.8]}
2... d5 {[%clk 0:02:57.1]} 3. Bf4 {[%clk 0:03:02.7]} 3... a6 {[%clk 0:02:55.3]}
4. e3 {[%clk 0:03:00.6]} 4... e6 {[%clk 0:02:56.4]} 5. g4 {[%clk 0:03:00.2]}
5... c5 {[%clk 0:02:53.6]} 6. g5 {[%clk 0:02:59.4]} 6... Nfd7 {[%clk 0:02:54.5]}
7. Nf3 {[%clk 0:02:57.8]} 7... Nc6 {[%clk 0:02:55.3]} 8. h4 {[%clk 0:02:57.1]}
8... cxd4 {[%clk 0:02:53.1]} 9. exd4 {[%clk 0:02:59]} 9... Qb6 {[%clk
0:02:53.6]} 10. Rb1 {[%clk 0:02:41.8]} 10... Be7 {[%clk 0:02:48.9]} 11. Be2
{[%clk 0:02:40]} 11... Qd8 {[%clk 0:02:42.8]} 12. Ne5 {[%clk 0:02:29]} 12...
Ncxe5 {[%clk 0:02:27.6]} 13. dxe5 {[%clk 0:02:30.9]} 13... b5 {[%clk 0:02:28.9]}
14. Bf3 {[%clk 0:02:23.9]} 14... Bb7 {[%clk 0:02:28.9]} 15. Ne2 {[%clk
0:02:23.2]} 15... Qc7 {[%clk 0:02:29.1]} 16. Qd4 {[%clk 0:02:13.9]} 16... Bc5
{[%clk 0:02:17.7]} 17. Qc3 {[%clk 0:02:01.2]} 17... Rc8 {[%clk 0:02:19.1]} 18.
O-O {[%clk 0:01:56.5]} 18... Qb8 {[%clk 0:02:17]} 0-1

[Event "*** Titled Tuesday Blitz"]
[Site "Chess.com"]
[Date "2019.05.07"]
[Round "1"]
[White "MaxLeto"]
[Black "Marcus_Harvey"]
[Result "0-1"]
[WhiteElo "2311"]
[BlackElo "2645"]
[TimeControl "180+2"]
[EndTime "13:04:19 PDT"]
[Termination "Marcus_Harvey won by resignation"]

1. d4 {[%clk 0:02:25.4]} 1... e6 {[%clk 0:03:01.9]} 2. e4 {[%clk 0:02:22.9]}
2... d5 {[%clk 0:03:01.8]} 3. Nc3 {[%clk 0:02:21.6]} 3... Nf6 {[%clk 0:03:02.2]}
4. Bg5 {[%clk 0:02:08.5]} 4... dxe4 {[%clk 0:03:03.2]} 5. Nxe4 {[%clk
0:02:10.1]} 5... Be7 {[%clk 0:03:04.5]} 6. Bxf6 {[%clk 0:02:11.6]} 6... gxf6
{[%clk 0:03:05.9]} 7. Nf3 {[%clk 0:02:12.2]} 7... f5 {[%clk 0:03:07.5]} 8. Ng3
{[%clk 0:02:12.2]} 8... c5 {[%clk 0:03:07.5]} 9. c3 {[%clk 0:02:10.3]} 9... Nc6
{[%clk 0:03:06.7]} 10. Bb5 {[%clk 0:01:58.7]} 10... Qb6 {[%clk 0:03:06.5]} 11.
Qa4 {[%clk 0:01:57]} 11... Bd7 {[%clk 0:03:06]} 12. O-O-O {[%clk 0:01:43.5]}
12... a6 {[%clk 0:03:06.9]} 13. Bxc6 {[%clk 0:01:23.5]} 13... Bxc6 {[%clk
0:03:08.8]} 14. Qb3 {[%clk 0:01:22.4]} 14... Qxb3 {[%clk 0:03:06.5]} 15. axb3
{[%clk 0:01:24.3]} 15... h5 {[%clk 0:02:52.2]} 16. Rhg1 {[%clk 0:00:36]} 16...
h4 {[%clk 0:02:49.8]} 17. Ne2 {[%clk 0:00:36.5]} 17... h3 {[%clk 0:02:50.7]} 18.
Ne5 {[%clk 0:00:33.5]} 18... Bxg2 {[%clk 0:02:50.3]} 19. Nf4 {[%clk 0:00:34.3]}
19... Bg5 {[%clk 0:02:50.9]} 20. Nd3 {[%clk 0:00:32.4]} 20... cxd4 {[%clk
0:02:52.2]} 21. cxd4 {[%clk 0:00:32.8]} 21... Rh4 {[%clk 0:02:50.6]} 0-1

[Event "*** Titled Tuesday Blitz"]
[Site "Chess.com"]
[Date "2019.05.07"]
[Round "1"]
[White "HouseOfDurin"]
[Black "evgenyermolaev"]
[Result "0-1"]
[WhiteElo "1947"]
[BlackElo "2510"]
[TimeControl "180+2"]
[EndTime "13:04:21 PDT"]
[Termination "evgenyermolaev won by resignation"]

1. d4 {[%clk 0:02:58.3]} 1... Nf6 {[%clk 0:03:00.8]} 2. Bg5 {[%clk 0:02:59.5]}
2... Ne4 {[%clk 0:03:01.9]} 3. h4 {[%clk 0:03:00.5]} 3... c5 {[%clk 0:03:02.9]}
4. dxc5 {[%clk 0:03:00.9]} 4... Qa5+ {[%clk 0:03:03.6]} 5. Nd2 {[%clk
0:03:01.2]} 5... Nxg5 {[%clk 0:03:05]} 6. hxg5 {[%clk 0:03:01.9]} 6... Qxc5
{[%clk 0:03:06.9]} 7. Ngf3 {[%clk 0:03:01.1]} 7... Nc6 {[%clk 0:03:06.3]} 8. e4
{[%clk 0:03:01]} 8... e6 {[%clk 0:03:07.1]} 9. c3 {[%clk 0:02:42.3]} 9... Be7
{[%clk 0:03:01.6]} 10. Nb3 {[%clk 0:02:32.8]} 10... Qb6 {[%clk 0:03:01.7]} 11.
e5 {[%clk 0:02:24.8]} 11... Na5 {[%clk 0:03:00.1]} 12. Nxa5 {[%clk 0:01:40.1]}
12... Qxa5 {[%clk 0:03:02]} 13. Qb3 {[%clk 0:01:41.1]} 13... Bxg5 {[%clk
0:03:01.5]} 14. Bd3 {[%clk 0:01:09.9]} 14... Be7 {[%clk 0:02:58.6]} 15. Bxh7
{[%clk 0:00:54.8]} 15... Qb6 {[%clk 0:02:44.6]} 16. Qc2 {[%clk 0:00:46.1]} 16...
d6 {[%clk 0:02:43.1]} 17. exd6 {[%clk 0:00:41.4]} 17... Qxd6 {[%clk 0:02:45]}
18. Qd3 {[%clk 0:00:25.3]} 18... Qxd3 {[%clk 0:02:44]} 0-1

[Event "*** Titled Tuesday Blitz"]
[Site "Chess.com"]
[Date "2019.05.07"]
[Round "1"]
[White "Roenko_Artur"]
[Black "Chessialist"]
[Result "0-1"]
[WhiteElo "2237"]
[BlackElo "2564"]
[TimeControl "180+2"]
[EndTime "13:04:39 PDT"]
[Termination "Chessialist won by resignation"]

1. d4 {[%clk 0:02:59]} 1... Nf6 {[%clk 0:03:00.8]} 2. c4 {[%clk 0:02:59.3]} 2...
e6 {[%clk 0:03:02.1]} 3. Nc3 {[%clk 0:02:59.7]} 3... d5 {[%clk 0:03:01.2]} 4.
cxd5 {[%clk 0:02:59.2]} 4... exd5 {[%clk 0:03:01.9]} 5. Bg5 {[%clk 0:02:59.5]}
5... Be7 {[%clk 0:03:02.6]} 6. Qc2 {[%clk 0:03:00.3]} 6... c6 {[%clk 0:03:03]}
7. e3 {[%clk 0:03:01]} 7... Nbd7 {[%clk 0:03:03.1]} 8. Bd3 {[%clk 0:02:48.2]}
8... Nf8 {[%clk 0:03:03.3]} 9. Nf3 {[%clk 0:02:48.8]} 9... Ne6 {[%clk
0:03:03.5]} 10. Bxf6 {[%clk 0:02:42.3]} 10... Bxf6 {[%clk 0:03:04.4]} 11. b4
{[%clk 0:02:43.6]} 11... a6 {[%clk 0:03:03.8]} 12. a4 {[%clk 0:02:38.6]} 12...
h6 {[%clk 0:03:00.1]} 13. O-O {[%clk 0:02:35.9]} 13... O-O {[%clk 0:03:00.5]}
14. b5 {[%clk 0:02:24.2]} 14... axb5 {[%clk 0:03:00.8]} 15. axb5 {[%clk
0:02:24.2]} 15... Rxa1 {[%clk 0:03:02.7]} 16. Rxa1 {[%clk 0:02:24.5]} 16... c5
{[%clk 0:03:03.2]} 17. dxc5 {[%clk 0:02:07.6]} 17... d4 {[%clk 0:02:54.1]} 18.
Rd1 {[%clk 0:01:43]} 18... dxc3 {[%clk 0:02:40]} 19. Bh7+ {[%clk 0:01:43]} 19...
Kh8 {[%clk 0:02:41.4]} 20. Rxd8 {[%clk 0:01:43.3]} 20... Rxd8 {[%clk 0:02:43.3]}
21. Bf5 {[%clk 0:01:35.4]} 21... Nxc5 {[%clk 0:02:42.4]} 22. Bxc8 {[%clk
0:01:35.7]} 22... Rxc8 {[%clk 0:02:44.3]} 23. Nd4 {[%clk 0:01:35.3]} 23... Bxd4
{[%clk 0:02:41.1]} 24. exd4 {[%clk 0:01:35.3]} 24... Ne6 {[%clk 0:02:42.3]} 25.
Kf1 {[%clk 0:00:49.7]} 25... Nxd4 {[%clk 0:02:41.2]} 26. Qc1 {[%clk 0:00:48.7]}
26... c2 {[%clk 0:02:40.9]} 0-1

[Event "*** Titled Tuesday Blitz"]
[Site "Chess.com"]
[Date "2019.05.07"]
[Round "1"]
[White "Jbd735"]
[Black "jefferyx"]
[Result "0-1"]
[WhiteElo "2464"]
[BlackElo "2892"]
[TimeControl "180+2"]
[EndTime "13:04:50 PDT"]
[Termination "jefferyx won by resignation"]

1. e4 {[%clk 0:03:01]} 1... c6 {[%clk 0:03:01.5]} 2. d4 {[%clk 0:03:01.7]} 2...
d5 {[%clk 0:03:03.2]} 3. e5 {[%clk 0:03:03.1]} 3... Bf5 {[%clk 0:03:04.5]} 4. h4
{[%clk 0:03:03.7]} 4... h5 {[%clk 0:03:05.3]} 5. c4 {[%clk 0:03:03.1]} 5... e6
{[%clk 0:03:05.8]} 6. Nc3 {[%clk 0:03:03.9]} 6... Ne7 {[%clk 0:03:05.3]} 7. Nge2
{[%clk 0:03:03]} 7... dxc4 {[%clk 0:03:06.1]} 8. Ng3 {[%clk 0:03:03.7]} 8... Bg6
{[%clk 0:03:05.7]} 9. Bxc4 {[%clk 0:03:03.9]} 9... Nd7 {[%clk 0:03:07.2]} 10.
Bg5 {[%clk 0:03:03.3]} 10... Nb6 {[%clk 0:02:56.6]} 11. Be2 {[%clk 0:03:03.6]}
11... Qd7 {[%clk 0:02:57.8]} 12. Bxh5 {[%clk 0:03:02.9]} 12... Bxh5 {[%clk
0:02:58.9]} 13. Nxh5 {[%clk 0:03:03.5]} 13... Nf5 {[%clk 0:03:00.4]} 14. Ne4
{[%clk 0:02:41.5]} 14... Qxd4 {[%clk 0:02:57]} 15. Qg4 {[%clk 0:02:32.8]} 15...
Rxh5 {[%clk 0:02:53.3]} 16. Rd1 {[%clk 0:02:15.3]} 16... Qc4 {[%clk 0:02:40.9]}
17. f3 {[%clk 0:01:52.5]} 17... Rh8 {[%clk 0:02:36.9]} 18. b3 {[%clk 0:01:47.7]}
18... Bb4+ {[%clk 0:02:36.3]} 19. Kf2 {[%clk 0:01:48.4]} 19... Bc5+ {[%clk
0:02:37.6]} 20. Ke1 {[%clk 0:01:46.4]} 20... Qc2 {[%clk 0:02:36.4]} 21. Rc1
{[%clk 0:01:39.8]} 21... Bb4+ {[%clk 0:02:36.4]} 22. Kf1 {[%clk 0:01:41]} 22...
Qd3+ {[%clk 0:02:37.2]} 23. Kg1 {[%clk 0:01:41.6]} 23... Qd4+ {[%clk 0:02:37.4]}
24. Kh2 {[%clk 0:01:39.7]} 24... Nd5 {[%clk 0:02:31.4]} 25. Rc4 {[%clk
0:01:36.8]} 25... Qxe5+ {[%clk 0:02:32.1]} 26. f4 {[%clk 0:01:36.4]} 26... Qc7
{[%clk 0:02:28.5]} 27. Re1 {[%clk 0:01:33.2]} 27... Bxe1 {[%clk 0:02:29.5]} 28.
h5 {[%clk 0:01:26.8]} 28... Nfe3 {[%clk 0:02:20.9]} 29. Qe2 {[%clk 0:01:23.1]}
29... Nxc4 {[%clk 0:02:17.9]} 30. bxc4 {[%clk 0:01:20.4]} 30... Nxf4 {[%clk
0:02:19.1]} 31. Qxe1 {[%clk 0:01:15.7]} 31... Nd3+ {[%clk 0:02:16.7]} 32. Qg3
{[%clk 0:01:15]} 32... Rxh5+ {[%clk 0:02:17.8]} 0-1

[Event "*** Titled Tuesday Blitz"]
[Site "Chess.com"]
[Date "2019.05.07"]
[Round "1"]
[White "Zq1"]
[Black "PNEPaul"]
[Result "1-0"]
[WhiteElo "2503"]
[BlackElo "1858"]
[TimeControl "180+2"]
[EndTime "13:04:59 PDT"]
[Termination "Zq1 won by resignation"]

1. d4 {[%clk 0:02:59.4]} 1... Nf6 {[%clk 0:03:00.2]} 2. c4 {[%clk 0:03:00]} 2...
c5 {[%clk 0:03:01.1]} 3. Nf3 {[%clk 0:03:00.2]} 3... e6 {[%clk 0:03:01.5]} 4. g3
{[%clk 0:02:57.4]} 4... a6 {[%clk 0:03:02.3]} 5. Bg2 {[%clk 0:02:58.1]} 5... h6
{[%clk 0:03:03.3]} 6. O-O {[%clk 0:02:58.9]} 6... d5 {[%clk 0:03:04.2]} 7. cxd5
{[%clk 0:02:58.7]} 7... exd5 {[%clk 0:03:04.4]} 8. dxc5 {[%clk 0:02:58.1]} 8...
Bxc5 {[%clk 0:03:04.2]} 9. b3 {[%clk 0:02:58.8]} 9... Nc6 {[%clk 0:03:04.2]} 10.
Bb2 {[%clk 0:02:59.7]} 10... Be6 {[%clk 0:03:00.2]} 11. Nd4 {[%clk 0:02:56.4]}
11... Nxd4 {[%clk 0:02:58.6]} 12. Bxd4 {[%clk 0:02:56.8]} 12... Bxd4 {[%clk
0:02:59.4]} 13. Qxd4 {[%clk 0:02:57.7]} 13... O-O {[%clk 0:03:00]} 14. Nc3
{[%clk 0:02:58.7]} 14... Qd7 {[%clk 0:02:47]} 15. Rfd1 {[%clk 0:02:55.3]} 15...
Rfd8 {[%clk 0:02:46.9]} 16. Na4 {[%clk 0:02:55.2]} 16... Qd6 {[%clk 0:02:40.3]}
17. e4 {[%clk 0:02:47.6]} 17... Qc6 {[%clk 0:02:29]} 18. Rac1 {[%clk 0:02:43.5]}
18... Qb5 {[%clk 0:02:24.3]} 19. Nc3 {[%clk 0:02:38.6]} 19... Qa5 {[%clk
0:02:21]} 20. exd5 {[%clk 0:02:38]} 20... Bg4 {[%clk 0:02:11]} 21. Re1 {[%clk
0:02:38.2]} 21... b5 {[%clk 0:02:04.9]} 22. h3 {[%clk 0:02:35.8]} 22... Bh5
{[%clk 0:02:03.5]} 23. b4 {[%clk 0:02:32.7]} 23... Qa3 {[%clk 0:02:00.2]} 24.
Rb1 {[%clk 0:02:32.9]} 24... Rac8 {[%clk 0:01:48.6]} 25. Rb3 {[%clk 0:02:33.7]}
25... Rxc3 {[%clk 0:01:46.7]} 26. Qxc3 {[%clk 0:02:01.4]} 26... Qxa2 {[%clk
0:01:42.4]} 27. Ra3 {[%clk 0:02:02.2]} 27... Qc4 {[%clk 0:01:36.5]} 28. Qxc4
{[%clk 0:02:00.6]} 28... bxc4 {[%clk 0:01:37.5]} 29. Rxa6 {[%clk 0:01:57.7]}
29... Nxd5 {[%clk 0:01:31.4]} 30. Ra5 {[%clk 0:01:58.8]} 30... c3 {[%clk
0:01:23.1]} 31. Rxd5 {[%clk 0:01:59.1]} 31... Rxd5 {[%clk 0:01:23.2]} 32. Bxd5
{[%clk 0:01:59]} 32... c2 {[%clk 0:01:24.2]} 33. Rc1 {[%clk 0:01:59.3]} 1-0

[Event "*** Titled Tuesday Blitz"]
[Site "Chess.com"]
[Date "2019.05.07"]
[Round "1"]
[White "Sebastian"]
[Black "AliKa2810"]
[Result "1-0"]
[WhiteElo "2910"]
[BlackElo "2490"]
[TimeControl "180+2"]
[EndTime "13:05:03 PDT"]
[Termination "Sebastian won by resignation"]

1. e4 {[%clk 0:03:01.7]} 1... e6 {[%clk 0:02:54.8]} 2. d4 {[%clk 0:03:01.8]}
2... d5 {[%clk 0:02:54]} 3. Nc3 {[%clk 0:03:02.9]} 3... Nf6 {[%clk 0:02:53.1]}
4. e5 {[%clk 0:03:03.9]} 4... Nfd7 {[%clk 0:02:53.8]} 5. Nce2 {[%clk 0:03:05.3]}
5... c5 {[%clk 0:02:52.6]} 6. c3 {[%clk 0:03:06.7]} 6... Nc6 {[%clk 0:02:54]} 7.
Nf3 {[%clk 0:03:07.4]} 7... b6 {[%clk 0:02:51.6]} 8. Nf4 {[%clk 0:03:05.4]} 8...
a5 {[%clk 0:02:51.8]} 9. h4 {[%clk 0:03:00]} 9... Ba6 {[%clk 0:02:49.9]} 10.
Bxa6 {[%clk 0:02:59.6]} 10... Rxa6 {[%clk 0:02:50.3]} 11. Ng5 {[%clk 0:02:55.5]}
11... g6 {[%clk 0:02:35.7]} 12. Be3 {[%clk 0:02:44.7]} 12... Bg7 {[%clk
0:02:24.1]} 13. Ngxe6 {[%clk 0:02:38.9]} 13... fxe6 {[%clk 0:02:24.2]} 14. Nxe6
{[%clk 0:02:40.4]} 14... Qe7 {[%clk 0:02:20.2]} 15. Nc7+ {[%clk 0:02:41]} 15...
Kd8 {[%clk 0:01:26]} 16. Nxa6 {[%clk 0:02:42.9]} 16... c4 {[%clk 0:01:26.1]} 17.
Bg5 {[%clk 0:02:23.9]} 17... Bf6 {[%clk 0:01:26.1]} 18. Qf3 {[%clk 0:02:25.3]}
18... Bxg5 {[%clk 0:01:14.2]} 19. Qxd5 {[%clk 0:02:26]} 19... Bxh4 {[%clk
0:00:11.6]} 20. Qxc6 {[%clk 0:02:24.9]} 20... Rf8 {[%clk 0:00:11]} 21. Qa8+
{[%clk 0:02:23.5]} 1-0

[Event "*** Titled Tuesday Blitz"]
[Site "Chess.com"]
[Date "2019.05.07"]
[Round "1"]
[White "JeremDev"]
[Black "aa175"]
[Result "1-0"]
[WhiteElo "2510"]
[BlackElo "1962"]
[TimeControl "180+2"]
[EndTime "13:05:04 PDT"]
[Termination "JeremDev won by checkmate"]

1. e4 {[%clk 0:03:01.9]} 1... d6 {[%clk 0:03:00.7]} 2. d4 {[%clk 0:03:02.4]}
2... Nd7 {[%clk 0:03:01.9]} 3. Nc3 {[%clk 0:03:02.8]} 3... e5 {[%clk 0:03:02.7]}
4. Nge2 {[%clk 0:03:04.1]} 4... Ngf6 {[%clk 0:03:03.2]} 5. h3 {[%clk 0:03:04.8]}
5... h5 {[%clk 0:03:03.8]} 6. g3 {[%clk 0:03:05.6]} 6... exd4 {[%clk 0:03:02.4]}
7. Nxd4 {[%clk 0:03:05.7]} 7... c5 {[%clk 0:03:02.8]} 8. Nf5 {[%clk 0:03:05.6]}
8... Ne5 {[%clk 0:03:04.7]} 9. Ne3 {[%clk 0:03:01.5]} 9... Bd7 {[%clk
0:02:59.7]} 10. f4 {[%clk 0:03:00.7]} 10... Ng6 {[%clk 0:03:00.8]} 11. Bg2
{[%clk 0:02:59.2]} 11... h4 {[%clk 0:03:00.8]} 12. f5 {[%clk 0:02:54.9]} 12...
Ne5 {[%clk 0:02:55.9]} 13. g4 {[%clk 0:02:55.9]} 13... g6 {[%clk 0:02:54]} 14.
O-O {[%clk 0:02:55.1]} 14... Bh6 {[%clk 0:02:50.9]} 15. Ned5 {[%clk 0:02:54.5]}
15... Bxc1 {[%clk 0:02:50.9]} 16. Qxc1 {[%clk 0:02:46.6]} 16... gxf5 {[%clk
0:02:48.2]} 17. exf5 {[%clk 0:02:41.7]} 17... Bc6 {[%clk 0:02:45.8]} 18. Qe3
{[%clk 0:02:27.3]} 18... Kd7 {[%clk 0:02:24.6]} 19. Rad1 {[%clk 0:02:17.1]}
19... Nxd5 {[%clk 0:02:17.2]} 20. Bxd5 {[%clk 0:02:17.7]} 20... Bxd5 {[%clk
0:02:19.1]} 21. Rxd5 {[%clk 0:02:16]} 21... Re8 {[%clk 0:02:05.2]} 22. Ne4
{[%clk 0:02:00]} 22... Nc4 {[%clk 0:01:58]} 23. Qd3 {[%clk 0:01:54.7]} 23... Kc6
{[%clk 0:01:59.2]} 24. Qxc4 {[%clk 0:01:50.4]} 24... b5 {[%clk 0:01:59.5]} 25.
Qd3 {[%clk 0:01:44.8]} 25... c4 {[%clk 0:01:38.6]} 26. Rxd6+ {[%clk 0:01:45.1]}
26... Kc7 {[%clk 0:01:40]} 27. Qd5 {[%clk 0:01:39.6]} 27... Qc8 {[%clk
0:01:36.3]} 28. Rc6+ {[%clk 0:01:35.1]} 28... Kb8 {[%clk 0:01:38.2]} 29. Qd6+
{[%clk 0:01:33.1]} 29... Kb7 {[%clk 0:01:37.3]} 30. Nc5# {[%clk 0:01:34.3]} 1-0

[Event "*** Titled Tuesday Blitz"]
[Site "Chess.com"]
[Date "2019.05.07"]
[Round "1"]
[White "elefante33"]
[Black "Eliwood44"]
[Result "1-0"]
[WhiteElo "2560"]
[BlackElo "2224"]
[TimeControl "180+2"]
[EndTime "13:05:11 PDT"]
[Termination "elefante33 won by resignation"]

1. d4 {[%clk 0:03:01.9]} 1... Nf6 {[%clk 0:02:59]} 2. Nf3 {[%clk 0:03:00]} 2...
e6 {[%clk 0:02:56.8]} 3. Bg5 {[%clk 0:03:00.1]} 3... d5 {[%clk 0:02:54.8]} 4.
Nbd2 {[%clk 0:02:59.5]} 4... Nbd7 {[%clk 0:02:51.9]} 5. e3 {[%clk 0:02:59.8]}
5... Be7 {[%clk 0:02:39.3]} 6. Bd3 {[%clk 0:02:59.1]} 6... b6 {[%clk 0:02:40.4]}
7. c3 {[%clk 0:02:56]} 7... h6 {[%clk 0:02:39]} 8. Bh4 {[%clk 0:02:55.7]} 8...
Bb7 {[%clk 0:02:34.1]} 9. Qb1 {[%clk 0:02:53.8]} 9... c5 {[%clk 0:02:33.5]} 10.
O-O {[%clk 0:02:47.6]} 10... O-O {[%clk 0:02:33.2]} 11. a3 {[%clk 0:02:45.6]}
11... a6 {[%clk 0:02:22.9]} 12. h3 {[%clk 0:02:33]} 12... Rc8 {[%clk 0:02:18.3]}
13. Bg3 {[%clk 0:02:33.3]} 13... Nb8 {[%clk 0:02:12.9]} 14. Ne5 {[%clk
0:02:30.9]} 14... Nc6 {[%clk 0:02:13.2]} 15. f4 {[%clk 0:02:29.6]} 15... Nxe5
{[%clk 0:02:03.9]} 16. fxe5 {[%clk 0:02:30.3]} 16... Nd7 {[%clk 0:02:05]} 17.
Qd1 {[%clk 0:02:29.4]} 17... b5 {[%clk 0:01:49.1]} 18. Qh5 {[%clk 0:02:23.4]}
18... f5 {[%clk 0:01:47]} 19. exf6 {[%clk 0:02:11]} 19... Rxf6 {[%clk
0:01:44.2]} 20. Qg4 {[%clk 0:01:48.3]} 20... Rc6 {[%clk 0:01:36.8]} 21. Nf3
{[%clk 0:01:44.1]} 21... Bd6 {[%clk 0:01:25]} 22. Bh4 {[%clk 0:01:40.7]} 22...
g5 {[%clk 0:01:25.9]} 23. Nxg5 {[%clk 0:01:40.8]} 23... hxg5 {[%clk 0:01:23.8]}
24. Bxg5 {[%clk 0:01:38.6]} 24... Rxf1+ {[%clk 0:01:15]} 25. Rxf1 {[%clk
0:01:40.5]} 25... Qe8 {[%clk 0:01:12.7]} 26. Bh6+ {[%clk 0:01:37.1]} 1-0

[Event "*** Titled Tuesday Blitz"]
[Site "Chess.com"]
[Date "2019.05.07"]
[Round "1"]
[White "Thee-Chessboy"]
[Black "MatthewG-p4p"]
[Result "0-1"]
[WhiteElo "2354"]
[BlackElo "2681"]
[TimeControl "180+2"]
[EndTime "13:05:14 PDT"]
[Termination "MatthewG-p4p won by resignation"]

1. d4 {[%clk 0:03:01.9]} 1... Nf6 {[%clk 0:03:00.9]} 2. c4 {[%clk 0:03:03.4]}
2... c5 {[%clk 0:03:00.8]} 3. d5 {[%clk 0:03:04.4]} 3... e6 {[%clk 0:03:01.9]}
4. Nc3 {[%clk 0:03:05.6]} 4... exd5 {[%clk 0:03:03.4]} 5. cxd5 {[%clk
0:03:07.5]} 5... d6 {[%clk 0:03:05]} 6. Nf3 {[%clk 0:03:07.6]} 6... g6 {[%clk
0:03:06.2]} 7. h3 {[%clk 0:03:08]} 7... Bg7 {[%clk 0:03:07.2]} 8. Bf4 {[%clk
0:03:09.3]} 8... O-O {[%clk 0:03:08.4]} 9. e3 {[%clk 0:03:10.6]} 9... Na6 {[%clk
0:03:06.7]} 10. Nd2 {[%clk 0:03:02.9]} 10... Nc7 {[%clk 0:03:04.6]} 11. Nc4
{[%clk 0:02:59.2]} 11... Nfe8 {[%clk 0:03:02.6]} 12. a4 {[%clk 0:02:54.3]} 12...
b6 {[%clk 0:02:57.7]} 13. Bd3 {[%clk 0:02:38.7]} 13... Rb8 {[%clk 0:02:55.5]}
14. O-O {[%clk 0:02:23.5]} 14... a6 {[%clk 0:02:54.8]} 15. e4 {[%clk 0:02:16.4]}
15... b5 {[%clk 0:02:46.2]} 16. axb5 {[%clk 0:02:16.2]} 16... axb5 {[%clk
0:02:47.6]} 17. Na5 {[%clk 0:02:15.4]} 17... Bd7 {[%clk 0:02:44]} 18. Nc6 {[%clk
0:02:09.3]} 18... Bxc6 {[%clk 0:02:44.3]} 19. dxc6 {[%clk 0:02:11.2]} 19... Rb6
{[%clk 0:02:28.4]} 20. Qe2 {[%clk 0:02:08.1]} 20... c4 {[%clk 0:02:27.7]} 21.
Bc2 {[%clk 0:02:00.3]} 21... Rxc6 {[%clk 0:02:28]} 22. Rfd1 {[%clk 0:01:55.3]}
22... Qe7 {[%clk 0:02:22.1]} 23. Ra7 {[%clk 0:01:52.3]} 23... Qe6 {[%clk
0:02:19.5]} 24. Qf3 {[%clk 0:01:26.5]} 24... Rc5 {[%clk 0:02:13.8]} 25. Be3
{[%clk 0:01:20.9]} 25... b4 {[%clk 0:02:08.1]} 26. Nd5 {[%clk 0:01:11]} 26...
Nxd5 {[%clk 0:02:00.5]} 27. exd5 {[%clk 0:01:11.3]} 27... Qc8 {[%clk 0:02:01.8]}
28. Bxc5 {[%clk 0:01:10.1]} 28... Qxc5 {[%clk 0:02:03.7]} 29. b3 {[%clk
0:01:08.1]} 29... Qxa7 {[%clk 0:02:04]} 0-1

[Event "*** Titled Tuesday Blitz"]
[Site "Chess.com"]
[Date "2019.05.07"]
[Round "1"]
[White "picturesquecheck"]
[Black "albi1999"]
[Result "0-1"]
[WhiteElo "2096"]
[BlackElo "2523"]
[TimeControl "180+2"]
[EndTime "13:05:21 PDT"]
[Termination "albi1999 won by resignation"]

1. e4 {[%clk 0:03:01.9]} 1... e5 {[%clk 0:03:00.1]} 2. Nf3 {[%clk 0:03:01.4]}
2... Nc6 {[%clk 0:03:01.1]} 3. Bb5 {[%clk 0:03:02.3]} 3... a6 {[%clk 0:03:02.2]}
4. Ba4 {[%clk 0:03:03.2]} 4... Nf6 {[%clk 0:03:02.2]} 5. O-O {[%clk 0:03:02.9]}
5... b5 {[%clk 0:02:58.9]} 6. Bb3 {[%clk 0:03:01.1]} 6... Bc5 {[%clk 0:03:00.8]}
7. a4 {[%clk 0:02:59.9]} 7... Rb8 {[%clk 0:02:55]} 8. axb5 {[%clk 0:02:59.5]}
8... axb5 {[%clk 0:02:55.7]} 9. Nxe5 {[%clk 0:02:56.4]} 9... Nxe5 {[%clk
0:02:55.8]} 10. d4 {[%clk 0:02:56.8]} 10... Bxd4 {[%clk 0:02:55.7]} 11. Qxd4
{[%clk 0:02:57.3]} 11... d6 {[%clk 0:02:57.6]} 12. f4 {[%clk 0:02:56.5]} 12...
Nc6 {[%clk 0:02:56.2]} 13. Qc3 {[%clk 0:02:57.3]} 13... Ne7 {[%clk 0:02:51.9]}
14. Ra7 {[%clk 0:02:46.3]} 14... Rb7 {[%clk 0:02:48]} 15. Ra8 {[%clk 0:02:10.2]}
15... Nxe4 {[%clk 0:02:30.2]} 16. Qxg7 {[%clk 0:02:09.3]} 16... Rf8 {[%clk
0:02:25.1]} 17. f5 {[%clk 0:02:03.3]} 17... d5 {[%clk 0:02:14.5]} 18. Bh6 {[%clk
0:01:55.9]} 18... Rg8 {[%clk 0:02:14.6]} 19. Qxh7 {[%clk 0:01:42.2]} 19... Qd6
{[%clk 0:02:01.3]} 20. f6 {[%clk 0:01:21.4]} 20... Qc5+ {[%clk 0:01:58.9]} 21.
Kh1 {[%clk 0:01:17.6]} 21... Nf2+ {[%clk 0:01:57.5]} 22. Rxf2 {[%clk 0:01:09.6]}
22... Qxf2 {[%clk 0:01:59.4]} 23. Rxc8+ {[%clk 0:01:03.5]} 23... Kd7 {[%clk
0:01:48.8]} 0-1